Cogmind - Beta 11 @@@ ROGUE MODE // 2022.04.04 @ 20:50:20 Player: Strikerv2 Result: Destroyed by G-34 Mercenary with Small Laser Performance ------------- Evolutions (0) 0 Regions Visited (1) 200 Robots Destroyed (11) 55 Value Destroyed (140) 140 Prototype IDs (0) 0 Alien Tech Used (0) 0 Bonus (0) 0 TOTAL SCORE: 395 Bonus ------- None Cogmind --------- Core Integrity 0/250 Matter 200/300 Energy 30/100 System Corruption 0% Temperature Cool (6) Movement Walking (120) Location -10/Materials Parts ------- > --- POWER (1) -------- (None) > --- PROPULSION (2) --- Aluminum Leg > --- UTILITY (2) ------ Small Storage Unit Core Shielding > --- WEAPON (2) ------- Small Laser Light Assault Rifle > --- INVENTORY (8) ---- Improved Terrain Scanner Seismic Detector Core Shielding Assault Rifle Mining Laser Peak State ------------ > --- POWER ------------ Light Ion Engine > --- PROPULSION ------- Aluminum Leg Aluminum Leg > --- UTILITY ---------- Improved Terrain Scanner Seismic Detector > --- WEAPON ----------- Assault Rifle Light Assault Rifle > --- INVENTORY -------- Aluminum Leg Small Laser Mining Laser [Rating: 9] Favorites ----------- Power Light Ion Engine Engine Light Ion Engine Propulsion Aluminum Leg Leg Aluminum Leg Utility Seismic Detector Device Seismic Detector Protection Core Shielding Weapon Assault Rifle Energy Gun Small Laser Ballistic Gun Assault Rifle Launcher Grenade Launcher Special Weapon Mining Laser Build | -11 -10 ------- Run | Scr Mat Slots Evolved . | . . Power . | . . Propulsion . | . . Utility . | . . Weapon . | . . Parts Attached 17 | 10 7 Power 2 | 2 . Engine 2 | 2 . Core . | . . Reactor . | . . Propulsion 3 | 2 1 Treads . | . . Leg 3 | 2 1 Wheel . | . . Hover . | . . Flight . | . . Utility 5 | 2 3 Device 2 | 2 . Storage 1 | . 1 Processor . | . . Hackware . | . . Protection 2 | . 2 Artifact . | . . Weapon 7 | 4 3 Energy Gun 1 | . 1 Energy Cannon . | . . Ballistic Gun 4 | 3 1 Ballistic Cannon . | . . Launcher 1 | . 1 Special Weapon 1 | 1 . Impact Weapon . | . . Slashing Weapon . | . . Piercing Weapon . | . . Special Melee Weapon . | . . Unidentified Prototypes . | . . Parts Lost 4 | . 4 Power 1 | . 1 Propulsion 2 | . 2 Utility . | . . Weapon 1 | . 1 Highest Loss Streak 3 | . 3 To Critical Strikes . | . . Average Slot Usage (%) 80 | . 80 Engine 5 | . 5 Leg 19 | . 19 Device 27 | . 27 Energy Gun 4 | . 4 Ballistic Gun 19 | . 19 Launcher 2 | . 2 Naked Turns . | . . Heaviest Build 8 | 8 8 Greatest Support 20 | 20 20 Greatest Overweight (x) 2 | . 2 Average Overweight (x) . | . . Largest Inventory Capacity 5 | 5 5 Average Capacity 5 | 5 5 Most Carried 5 | 5 5 Average Carried 3 | 3 3 Final Capacity 8 | 5 8 Final Carried 5 | 3 5 Class Distribution -------------------- 100% | Mutant Dominant Class ---------------- Mutant | -10/Materials Resources | -11 -10 ----------- Run | Scr Mat Matter Collected 374 | 333 41 Remotely . | . . Salvage Created 222 | 113 109 Parts 21 | 8 13 Haulers Intercepted . | . . Recyclers Shooed . | . . Parts Field Recycled . | . . Retrieved Matter . | . . Parts Self-Destructed . | . . Prevented . | . . Kills | -11 -10 ------- Run | Scr Mat Combat Hostiles Destroyed 5 | 1 4 Guns 4 | 1 3 AOE 1 | . 1 Classes Destroyed 5 | 2 3 Worker 1 | . 1 Builder 2 | . 2 Tunneler 3 | 3 . Swarmer 3 | . 3 Grunt 2 | 1 1 Best Kill Streak 5 | 2 5 Combat Bots Only 2 | 1 2 Max Kills in Single Turn 3 | 1 3 Gunslinging . | . . Exploded 1 | . 1 Melee . | . . Uniques/NPCs Destroyed . | . . Combat | -11 -10 -------- Run | Scr Mat Damage Taken 820 | 96 724 Core 251 | . 251 Absorbed by Shields . | . . Redirected to Shielding 2 | . 2 Core Remaining (%) 100 | 100 . Volleys Fired 55 | 29 26 Largest 2 | 2 2 Hottest 100 | 100 60 Shots Fired 96 | 47 49 Gun 82 | 36 46 Cannon . | . . Launcher 3 | . 3 Special 11 | 11 . Kinetic 80 | 36 44 Thermal 13 | 11 2 Explosive 3 | . 3 Electromagnetic . | . . Robot Hit Streak 5 | 5 3 Robot Miss Streak 5 | 3 5 Penetration Max . | . . Secondary Targets . | . . Shots Hit Robots 36 | 21 15 Core Hits 24 | 5 19 Critical Kills 1 | 1 . Critical Parts Destroyed . | . . Critical Strikes 1 | 1 . Destroy 1 | 1 . Melee Attacks . | . . Impact . | . . Slashing . | . . Piercing . | . . Sneak Attacks . | . . Combat Hostiles . | . . Follow-up Attacks . | . . Damage Inflicted 596 | 224 372 Guns 349 | 221 128 Cannons . | . . Explosions 219 | . 219 Melee . | . . Ramming 28 | 3 25 Kinetic 338 | 221 117 Thermal 11 | . 11 Explosive 219 | . 219 Electromagnetic . | . . Impact . | . . Slashing . | . . Piercing . | . . Highest Corruption . | . . Average Corruption . | . . Corruption Purged . | . . Corruption Blocked . | . . Overload Shots . | . . Overflow Damage 2 | . 2 Projectiles . | . . Explosions 2 | . 2 Melee . | . . Knockbacks . | . . Impact . | . . Kinetic . | . . Secondary . | . . Self-Inflicted Damage . | . . Shots . | . . Rammed . | . . Targets Rammed 22 | 2 20 Kicked 22 | 2 20 Crushed . | . . Highest Temperature 62 | 62 25 Average Temperature 19 | 22 9 Received Heat Transfer 345 | 54 291 Siege Activations . | . . Robots Corrupted . | . . Combat Hostiles . | . . Parts Fried . | . . Impact Corruptions . | . . Robots Melted . | . . Combat Hostiles . | . . Parts Melted . | . . Heat Transferred 25 | . 25 Parts Sabotaged . | . . Parts Stolen . | . . Parts Stripped . | . . Power Chain Reactions . | . . Missiles Intercepted . | . . Alert | -11 -10 ------- Run | Scr Mat Peak Influence 277 | 35 277 Initial 22 | . 22 Average 76 | 21 137 Maximum Alert Level 1 | . 1 Low Security (%) 85 | 100 68 Level 1 14 | . 31 Level 2 . | . . Level 3 . | . . Level 4 . | . . Level 5 . | . . High Security . | . . Max Security . | . . Squads Dispatched 1 | . 1 Investigation . | . . Extermination . | . . Reinforcement 1 | . 1 Assault . | . . Garrison . | . . Intercept . | . . Searches Triggered . | . . Construction Impeded . | . . Haulers Reinforced . | . . Active Scanning Responses . | . . Cargo Convoy Interrupts . | . . Stealth | -11 -10 --------- Run | Scr Mat Distress Signals 1 | . 1 Communications Jammed . | . . Distress Signals . | . . Times Spotted 15 | 1 14 Peak Tracking Total 6 | 1 6 Tactical Retreats 3 | . 3 Traps | -11 -10 ------- Run | Scr Mat Traps Triggered 1 | . 1 Indirectly . | . . Trap Hack Attempts . | . . Triggered . | . . Disarmed . | . . Reprogrammed . | . . Reused . | . . Traps Extracted . | . . Installed . | . . Triggered . | . . Machines | -11 -10 ---------- Run | Scr Mat Machines Disabled 1 | . 1 Max in Single Turn 1 | . 1 Machines Sabotaged . | . . Garrisons Compromised . | . . Overloaded Fab Kills . | . . Hacking | -11 -10 --------- Run | Scr Mat Machines Accessed . | . . Terminals . | . . Fabricators . | . . Repair Stations . | . . Recycling Units . | . . Scanalyzers . | . . Garrison Access . | . . Total Hacks . | . . Successful . | . . Failed . | . . Catastrophic . | . . Database Lockouts . | . . Manual . | . . Terminals . | . . Fabricators . | . . Repair Stations . | . . Recycling Units . | . . Scanalyzers . | . . Garrison Access . | . . Terminal Hacks . | . . Fabricator Hacks . | . . Repair Station Hacks . | . . Recycling Unit Hacks . | . . Scanalyzer . | . . Garrison Access Hacks . | . . Unauthorized Hacks . | . . Terminals . | . . Fabricators . | . . Repair Stations . | . . Recycling Units . | . . Scanalyzers . | . . Garrison Access . | . . Data Cores Recovered . | . . Used . | . . Hacking Detections . | . . Full Trace Events . | . . Feedback Events . | . . Feedback Blocked . | . . Robot Schematics Acquired . | . . Robots Built . | . . Authchips . | . . Time . | . . Total Robot Build Rating . | . . Part Schematics Acquired . | . . Parts Built . | . . Authchips . | . . Time . | . . Total Part Build Rating . | . . Parts Repaired . | . . Time . | . . Parts Recycled . | . . Recycled Matter . | . . Retrieved Matter . | . . Retrieved Components . | . . Parts Scanalyzed . | . . Part Schematics Acquired . | . . Parts Damaged . | . . Bothacking | -11 -10 ------------ Run | Scr Mat Used RIF Installer . | . . Robots Hacked . | . . Non-combat . | . . Combat . | . . Robot Hacks Applied . | . . Relay Couplers Released . | . . Fabnet Peak Effective % . | . . Robots Rewired . | . . Allies Hacked . | . . Hacks Repelled . | . . Allies | -11 -10 -------- Run | Scr Mat Total Allies . | . . Largest Group . | . . Highest-Rated Group . | . . Highest-Rated Ally . | . . Total Orders . | . . Ally Attacks . | . . Total Damage . | . . Kills . | . . Allies Corrupted . | . . Allies Melted . | . . Intel | -11 -10 ------- Run | Scr Mat Robot Analysis Total . | . . Derelict Logs Recovered . | . . Drone Launches . | . . Drone Recoveries . | . . Exploration | -11 -10 ------------- Run | Scr Mat Turns Passed 694 | 363 331 Spaces Moved 396 | 207 189 Core 56 | 20 36 Treads . | . . Legs 340 | 187 153 Wheels . | . . Hover . | . . Flight . | . . Fastest Speed 50 | 50 50 Average Speed 115 | 113 117 Slowest Speed 150 | 120 150 Overloaded Moves . | . . Propulsion Burnouts . | . . Robots Hopped . | . . Cave-ins Triggered . | . . Exploration Rate (%) 14 | 6 22 Regions Visited 1 Branch Regions . Pre-discovered Areas . | . . Known Exits Taken . | . . Unknown Exits Taken 1 | 1 . Scrap Searched . | . . Spaces Dug . | . . Terrain Destroyed 15 | . 15 Melee . | . . Projectile . | . . AOE 15 | . 15 Terrain Rammed . | . . Walls Destroyed . | . . Machines Disabled . | . . Actions | -11 -10 --------- Run | Scr Mat Total 518 | 271 247 Wait 7 | 7 . Move 395 | 206 189 Hop . | . . Pick Up 18 | 13 5 Fast Attach . | . . Attach 11 | 8 3 Detach 1 | 1 . Swap 6 | 2 4 Drop 3 | 3 . Fire 55 | 29 26 Melee . | . . Ram . | . . Kick 22 | 2 20 Crush . | . . Escape Stasis . | . . Rewire . | . . Trap . | . . Miscellaneous . | . . Route ------- -11/Scrapyard -10/Materials History --------- Turn | Location | Event 2 | -11/Scrapyard | Met Revision 17 75 | -11/Scrapyard | Discovered new exit (range 8) 364 | -11/Scrapyard | Entered Materials 384 | -10/Materials | Build established: Mutant 571 | -10/Materials | Core integrity fell below 50% 572 | -10/Materials | Lost 3 parts (1p2n) 627 | -10/Materials | Core integrity fell below 20% 695 | -10/Materials | Destroyed by G-34 Mercenary with Small Laser Last Messages --------------- 00586_ Kicked S-10 Pest out of the way. 00587_ Kicked S-10 Pest. 00596_ Kicked S-10 Pest out of the way. 00601_ S-10 Pest destroyed. 00604_ Kicked G-34 Mercenary. 00607_ Kicked G-34 Mercenary out of the way. 00608_ Kicked G-34 Mercenary. 00610_ Kicked G-34 Mercenary out of the way. 00611_ Kicked G-34 Mercenary. 00613_ Kicked G-34 Mercenary out of the way. 00637_ K-01 Serf collects debris. 00661_ Acquired Assault Rifle. 00670_ K-01 Serf collects debris. 00688_ Acquired Core Shielding. 00691_ K-01 Serf collects debris. 00692_ Acquired Core Shielding. Note that some effects don't stack, e.g. attaching both Core Shielding and Core Shielding does not combine the two effects (all such effects are marked ). 00694_ K-01 Serf collects debris. Map ----- +----------------------------------------------------+ | ????????????????????????????????? | | ????????????????????????????????? | | ????????????????????????????????? | | ????????????????????????????????? | | ????????????????????????????????? | | ????????????????????????????????? | | ????????????????????????????????? | | ?????????? ???????????????????? | | ?????????? ???????????????????? | | ?????????? ??????????????????? | | ?????????# #??????????????????? | | ???? ????# #??????????????????? | | ?????????+ #??????????????????? | | ?????????# ????????????#?????? | | ? ???????# #??????????????????? | | #????????# #??????????????????? | | ?????????? ##+###?#??????????#? | | ?????????? #?? ??????????? | | ?????????? ? #?????????? ??? | | ?????#???? ? ##???????#????? | | ??#????####+### #?????????????? | | ?##????# # #??#??????????? | | ???????# g +?????????????? | | ???????# # #????? ???????? | | ???????# !! # #????"?#????#?? | | ???????#@!k # #??????????#??? | | ???????#!! # #???""???????? | | ???#???######## #????????? ???? | | ??????#???#???# #???#?????????? | | ????????#???### ##??#?????????? | | ???????#??#?## #?#?#?#??????? | | ???#?????#???# ############## | | ?????#???????# [*% | | ?????????????# ############## | | ??#??????????# ! #????????????? | | ???????????#####/#####??????????? | | ???????????# #??????????? | | #??#???????# ###????????? | | ???????????# !###??#?????? | | ???????????# ##?????????? | | ????????#?## #?##????#??? | | ??#######??# #?#????????? | | # #### #????#?????? | | ? """ # + ##???##????? | | #""""" # #####+######???#?????? | | #""""" # ##????? ??? | | #""""" # #?????????? | | # """ + #???????? ? | | # # #?????????? | | # ### ##??????? ? | +----------------------------------------------------+ Best States ------------- Heat Dissipation 25 Energy Generation 10 Energy Capacity 125 Matter Stores 300 Matter Capacity 300 Sight Range 16 Terrain Scan Range 16 Terrain Scan Density 10 Core Shielding 20 Evasion (%) 55 Item Schematics ----------------- None Robot Schematics ------------------ None Fabricated ------------ Nothing Alien Tech Used ----------------- None Achievements -------------- None Challenges ------------ None Game ------ Seed SpliceGodWings Manual? 0 Play Time 00:12:28 Cumulative 0.7 hours Start 2022.04.04 @ 20:36:34 End 2022.04.04 @ 20:50:20 Sessions 1 Manual Loads 0 Difficulty Rogue Special Mode None Game No. 2 Rogue 2 Adventurer 0 Explorer 0 Win Type - Total 0 Types 0/0/0/0/0/0/0/0/0 Lore% 0 Gallery% 1 Achievement% 1 Wizard Run 0 Options --------- ASCII 0 Keyboard 0 Movement Numpad Keybinds 0 Fullscreen 1 Font 20/SmallcapsGlow Map View 66x50 Tactical HUD 1 Map Filters NONE Filters NONE Steam 1 RUN: 9d6b9dc7-c293-45f5-a3a2-54e38cd5bcc8